[Event "Late-Titled-Tuesday-Blitz-April-30-2024"]
[Site "Chess.com"]
[Date "2024.04.30"]
[Round "7"]
[White "db-banana"]
[Black "Crazy_girl99"]
[Result "0-1"]
[WhiteElo "2467"]
[BlackElo "2654"]
[TimeControl "180+1"]
[EndTime "15:19:20 PDT"]
[Termination "Crazy_girl99 won by resignation"]

1. e4 {[%clk 0:03:00.9]} 1... e5 {[%clk 0:02:59.5]} 2. Nf3 {[%clk 0:03:00]} 2...
Nc6 {[%clk 0:03:00.2]} 3. Bc4 {[%clk 0:03:00]} 3... Bc5 {[%clk 0:02:58.4]} 4. d3
{[%clk 0:03:00.5]} 4... Nf6 {[%clk 0:02:57.7]} 5. c3 {[%clk 0:03:00.4]} 5... d6
{[%clk 0:02:58.4]} 6. Nbd2 {[%clk 0:03:00.8]} 6... a6 {[%clk 0:02:58.9]} 7. Bb3
{[%clk 0:03:01.2]} 7... h6 {[%clk 0:02:58.8]} 8. O-O {[%clk 0:03:01.4]} 8... Ba7
{[%clk 0:02:59.2]} 9. Bc2 {[%clk 0:03:01]} 9... O-O {[%clk 0:02:59.6]} 10. Re1
{[%clk 0:02:59.4]} 10... Re8 {[%clk 0:02:59.1]} 11. Nf1 {[%clk 0:02:59.6]} 11...
Be6 {[%clk 0:02:58.1]} 12. d4 {[%clk 0:02:58.1]} 12... exd4 {[%clk 0:02:55.1]}
13. cxd4 {[%clk 0:02:59]} 13... Bg4 {[%clk 0:02:53.1]} 14. d5 {[%clk 0:02:45.3]}
14... Ne5 {[%clk 0:02:50.1]} 15. N1d2 {[%clk 0:02:38.6]} 15... Nfd7 {[%clk
0:02:20.7]} 16. h3 {[%clk 0:02:33.5]} 16... Bh5 {[%clk 0:02:19.5]} 17. g4 {[%clk
0:01:27.9]} 17... Bg6 {[%clk 0:02:17.4]} 18. Qe2 {[%clk 0:01:13.9]} 18... Qf6
{[%clk 0:02:16]} 19. Nh2 {[%clk 0:01:13.6]} 19... h5 {[%clk 0:02:03.4]} 20. Ndf1
{[%clk 0:01:09.9]} 20... hxg4 {[%clk 0:02:01.5]} 21. hxg4 {[%clk 0:01:08.2]}
21... Qh4 {[%clk 0:01:59]} 22. Be3 {[%clk 0:01:03.4]} 22... Nf6 {[%clk
0:01:49.2]} 23. Bxa7 {[%clk 0:01:01.1]} 23... Rxa7 {[%clk 0:01:48.7]} 24. f3
{[%clk 0:00:54]} 24... Raa8 {[%clk 0:01:45.5]} 25. Qf2 {[%clk 0:00:52.6]} 25...
Qh3 {[%clk 0:01:28.6]} 26. Rac1 {[%clk 0:00:21.9]} 26... c6 {[%clk 0:01:24.5]}
27. dxc6 {[%clk 0:00:21.3]} 27... bxc6 {[%clk 0:01:23.3]} 28. Qg3 {[%clk
0:00:21.9]} 28... Qxg3+ {[%clk 0:01:08.5]} 29. Nxg3 {[%clk 0:00:22.8]} 29...
Rab8 {[%clk 0:01:06.8]} 30. b3 {[%clk 0:00:22.4]} 30... d5 {[%clk 0:01:02.2]}
31. exd5 {[%clk 0:00:19]} 31... Bxc2 {[%clk 0:01:01.2]} 32. Rxc2 {[%clk
0:00:19.3]} 32... cxd5 {[%clk 0:00:58.7]} 33. Rce2 {[%clk 0:00:19.1]} 33... Nd3
{[%clk 0:00:52]} 34. Rxe8+ {[%clk 0:00:20]} 34... Nxe8 {[%clk 0:00:50.8]} 35.
Rd1 {[%clk 0:00:19.9]} 35... Nf4 {[%clk 0:00:49.2]} 36. Nhf1 {[%clk 0:00:19]}
36... Nf6 {[%clk 0:00:47.8]} 37. Nf5 {[%clk 0:00:19.4]} 37... Kf8 {[%clk
0:00:45.4]} 38. N1e3 {[%clk 0:00:19.8]} 38... Rd8 {[%clk 0:00:43.9]} 39. Kf2
{[%clk 0:00:18.7]} 39... Ne6 {[%clk 0:00:40.9]} 40. Nc2 {[%clk 0:00:18.1]} 40...
Rc8 {[%clk 0:00:37.2]} 41. Ncd4 {[%clk 0:00:18.3]} 41... g6 {[%clk 0:00:32.6]}
42. Nxe6+ {[%clk 0:00:18.1]} 42... fxe6 {[%clk 0:00:32.3]} 43. Nd4 {[%clk
0:00:19]} 43... e5 {[%clk 0:00:28]} 44. Ne2 {[%clk 0:00:09.6]} 44... Rc2 {[%clk
0:00:27.5]} 45. a4 {[%clk 0:00:09.7]} 45... d4 {[%clk 0:00:27.2]} 46. Ke1 {[%clk
0:00:09.9]} 46... Nd5 {[%clk 0:00:25]} 47. Nxd4 {[%clk 0:00:05.7]} 47... exd4
{[%clk 0:00:22.6]} 48. Rxd4 {[%clk 0:00:06.6]} 48... Ne7 {[%clk 0:00:18.8]} 49.
Rd6 {[%clk 0:00:06.9]} 49... a5 {[%clk 0:00:18.9]} 50. Ra6 {[%clk 0:00:06.1]}
50... Rc5 {[%clk 0:00:18.9]} 51. Kd2 {[%clk 0:00:06.3]} 51... Kf7 {[%clk
0:00:18.9]} 52. Rb6 {[%clk 0:00:05.3]} 52... Rd5+ {[%clk 0:00:18.2]} 53. Ke3
{[%clk 0:00:05.1]} 53... Rc5 {[%clk 0:00:16.9]} 54. Kf2 {[%clk 0:00:04.8]} 54...
Nd5 {[%clk 0:00:15.1]} 55. Ra6 {[%clk 0:00:05]} 55... Nb4 {[%clk 0:00:12.6]} 56.
f4 {[%clk 0:00:04.6]} 56... Nd3+ {[%clk 0:00:12.4]} 57. Ke3 {[%clk 0:00:04.5]}
57... Nc1 {[%clk 0:00:12.3]} 58. Rb6 {[%clk 0:00:03.7]} 58... Rc3+ {[%clk
0:00:11.4]} 59. Ke4 {[%clk 0:00:03.6]} 59... Nxb3 {[%clk 0:00:10.4]} 60. f5
{[%clk 0:00:02.8]} 60... gxf5+ {[%clk 0:00:07.3]} 61. gxf5 {[%clk 0:00:03.7]}
61... Rh3 {[%clk 0:00:04.2]} 62. Ke5 {[%clk 0:00:03.6]} 62... Re3+ {[%clk
0:00:03.4]} 63. Kf4 {[%clk 0:00:03.6]} 63... Rc3 {[%clk 0:00:03.6]} 64. Ke5
{[%clk 0:00:04.1]} 64... Rc5+ {[%clk 0:00:02.9]} 65. Kf4 {[%clk 0:00:04.9]}
65... Nd4 {[%clk 0:00:01.9]} 66. Rb7+ {[%clk 0:00:05.3]} 66... Kf6 {[%clk
0:00:01.1]} 67. Rb6+ {[%clk 0:00:05.9]} 67... Ke7 {[%clk 0:00:01.7]} 68. Kg5
{[%clk 0:00:04.8]} 68... Nxf5 {[%clk 0:00:00.7]} 69. Kg6 {[%clk 0:00:02.7]}
69... Nd6 {[%clk 0:00:01.6]} 70. Ra6 {[%clk 0:00:02.7]} 70... Ke6 {[%clk
0:00:02.5]} 71. Kg7 {[%clk 0:00:02.6]} 71... Re5 {[%clk 0:00:03.4]} 72. Kg6
{[%clk 0:00:02.7]} 72... Rf5 {[%clk 0:00:04.1]} 73. Kg7 {[%clk 0:00:03.6]} 73...
Rf6 {[%clk 0:00:04.3]} 74. Kh7 {[%clk 0:00:03.9]} 74... Rf5 {[%clk 0:00:04.6]}
75. Kg7 {[%clk 0:00:04]} 75... Rc5 {[%clk 0:00:05.5]} 76. Rb6 {[%clk 0:00:03.7]}
76... Kd5 {[%clk 0:00:06.2]} 77. Ra6 {[%clk 0:00:04.1]} 77... Nc4 {[%clk
0:00:06.6]} 78. Kf6 {[%clk 0:00:04.4]} 78... Nb2 {[%clk 0:00:07]} 79. Ke7 {[%clk
0:00:04.7]} 79... Nxa4 {[%clk 0:00:07.7]} 80. Kd7 {[%clk 0:00:05]} 80... Kc4
{[%clk 0:00:08.4]} 81. Kd6 {[%clk 0:00:05.3]} 81... Kb4 {[%clk 0:00:08.9]} 82.
Ke6 {[%clk 0:00:05.4]} 82... Rb5 {[%clk 0:00:09.6]} 83. Kd6 {[%clk 0:00:05.4]}
83... Nb2 {[%clk 0:00:10]} 84. Ra8 {[%clk 0:00:05.6]} 84... Nc4+ {[%clk
0:00:10.6]} 85. Kc6 {[%clk 0:00:05.5]} 85... a4 {[%clk 0:00:11.3]} 86. Ra7
{[%clk 0:00:04.8]} 86... a3 {[%clk 0:00:11.9]} 87. Rxa3 {[%clk 0:00:05.3]} 87...
Nxa3 {[%clk 0:00:11.6]} 0-1

[Event "Late-Titled-Tuesday-Blitz-April-30-2024"]
[Site "Chess.com"]
[Date "2024.04.30"]
[Round "7"]
[White "rasmussvane"]
[Black "AlexeiShirov"]
[Result "1/2-1/2"]
[WhiteElo "2948"]
[BlackElo "2824"]
[TimeControl "180+1"]
[EndTime "15:19:45 PDT"]
[Termination "Game drawn by 50-move rule"]

1. Nf3 {[%clk 0:03:00.9]} 1... d5 {[%clk 0:02:59.7]} 2. g3 {[%clk 0:03:00.4]}
2... Nf6 {[%clk 0:02:59.5]} 3. Bg2 {[%clk 0:03:00.6]} 3... Bg4 {[%clk
0:02:59.9]} 4. O-O {[%clk 0:03:00.7]} 4... Nbd7 {[%clk 0:02:58.8]} 5. h3 {[%clk
0:03:00.5]} 5... Bh5 {[%clk 0:02:58.1]} 6. d4 {[%clk 0:03:00.6]} 6... e6 {[%clk
0:02:55.2]} 7. c4 {[%clk 0:02:58.5]} 7... c6 {[%clk 0:02:54.6]} 8. cxd5 {[%clk
0:02:58.8]} 8... exd5 {[%clk 0:02:53.8]} 9. Ne5 {[%clk 0:02:59]} 9... Nxe5
{[%clk 0:02:46.2]} 10. dxe5 {[%clk 0:02:59.9]} 10... Ne4 {[%clk 0:02:45.4]} 11.
Bxe4 {[%clk 0:02:58.1]} 11... dxe4 {[%clk 0:02:44.6]} 12. Nc3 {[%clk 0:02:58.6]}
12... Qxd1 {[%clk 0:02:37.2]} 13. Rxd1 {[%clk 0:02:59.5]} 13... Bb4 {[%clk
0:02:34.9]} 14. Nxe4 {[%clk 0:02:58.3]} 14... Bxe2 {[%clk 0:02:33.3]} 15. Rd4
{[%clk 0:02:57.9]} 15... Be7 {[%clk 0:02:18.7]} 16. Bg5 {[%clk 0:02:57.7]} 16...
h6 {[%clk 0:02:10.8]} 17. Bxe7 {[%clk 0:02:57.3]} 17... Kxe7 {[%clk 0:02:10.3]}
18. Re1 {[%clk 0:02:52.3]} 18... Bf3 {[%clk 0:01:58.7]} 19. Nd6 {[%clk
0:02:51.2]} 19... Bd5 {[%clk 0:01:45.6]} 20. a3 {[%clk 0:02:37.9]} 20... g6
{[%clk 0:01:39.9]} 21. f4 {[%clk 0:02:26.3]} 21... b6 {[%clk 0:01:33.7]} 22. b4
{[%clk 0:02:23.2]} 22... Rhd8 {[%clk 0:01:10.5]} 23. f5 {[%clk 0:02:02.9]} 23...
gxf5 {[%clk 0:01:08.2]} 24. Nxf5+ {[%clk 0:02:03.8]} 24... Ke6 {[%clk
0:01:05.7]} 25. Rf4 {[%clk 0:02:03.9]} 25... a5 {[%clk 0:00:56.1]} 26. Re2
{[%clk 0:01:02.4]} 26... axb4 {[%clk 0:00:53.4]} 27. axb4 {[%clk 0:01:02.2]}
27... Ra1+ {[%clk 0:00:48.8]} 28. Kf2 {[%clk 0:01:02.2]} 28... Rh1 {[%clk
0:00:46.4]} 29. Nxh6 {[%clk 0:00:55.2]} 29... Rxh3 {[%clk 0:00:41]} 30. Nxf7
{[%clk 0:00:53.8]} 30... Rg8 {[%clk 0:00:39]} 31. g4 {[%clk 0:00:45.3]} 31...
Rh2+ {[%clk 0:00:35.3]} 32. Ke3 {[%clk 0:00:44.6]} 32... Rxe2+ {[%clk
0:00:34.4]} 33. Kxe2 {[%clk 0:00:45.5]} 33... Rg6 {[%clk 0:00:27.7]} 34. Ke3
{[%clk 0:00:40.8]} 34... c5 {[%clk 0:00:25.6]} 35. bxc5 {[%clk 0:00:38.1]} 35...
bxc5 {[%clk 0:00:25.1]} 36. Kd3 {[%clk 0:00:33.5]} 36... Ke7 {[%clk 0:00:22.6]}
37. Nd6 {[%clk 0:00:33]} 37... Ke6 {[%clk 0:00:22]} 38. Ne8 {[%clk 0:00:19]}
38... Kxe5 {[%clk 0:00:21.1]} 39. Rf5+ {[%clk 0:00:19.2]} 39... Ke6 {[%clk
0:00:19.2]} 40. Nc7+ {[%clk 0:00:19.7]} 40... Kd6 {[%clk 0:00:19.3]} 41. Nxd5
{[%clk 0:00:19]} 41... Rxg4 {[%clk 0:00:19.7]} 42. Nc3 {[%clk 0:00:19.4]} 42...
Rg3+ {[%clk 0:00:19.4]} 43. Kc4 {[%clk 0:00:16.9]} 43... Rg4+ {[%clk 0:00:19.5]}
44. Kd3 {[%clk 0:00:17.4]} 44... Rg3+ {[%clk 0:00:19.6]} 45. Kc2 {[%clk
0:00:17.3]} 45... Rg2+ {[%clk 0:00:19.7]} 46. Kb3 {[%clk 0:00:17.8]} 46... Rg3
{[%clk 0:00:19.9]} 47. Rh5 {[%clk 0:00:17.7]} 47... Rf3 {[%clk 0:00:19.7]} 48.
Rh6+ {[%clk 0:00:17.9]} 48... Ke5 {[%clk 0:00:19.1]} 49. Kc4 {[%clk 0:00:18.3]}
49... Rf4+ {[%clk 0:00:18.7]} 50. Kxc5 {[%clk 0:00:18.7]} 50... Rf8 {[%clk
0:00:19.1]} 51. Rh5+ {[%clk 0:00:17.1]} 51... Ke6 {[%clk 0:00:19.4]} 52. Nd5
{[%clk 0:00:14.6]} 52... Rc8+ {[%clk 0:00:19.4]} 53. Kd4 {[%clk 0:00:14.8]}
53... Rc1 {[%clk 0:00:20]} 54. Rh6+ {[%clk 0:00:14.4]} 54... Kd7 {[%clk
0:00:20]} 55. Nf6+ {[%clk 0:00:10.1]} 55... Kd6 {[%clk 0:00:19.5]} 56. Ne4+
{[%clk 0:00:09.9]} 56... Kd7 {[%clk 0:00:19.7]} 57. Ke5 {[%clk 0:00:09.4]} 57...
Re1 {[%clk 0:00:19.5]} 58. Rg6 {[%clk 0:00:08]} 58... Ke7 {[%clk 0:00:18.8]} 59.
Rg7+ {[%clk 0:00:08]} 59... Kd8 {[%clk 0:00:18.9]} 60. Kd5 {[%clk 0:00:06.4]}
60... Rd1+ {[%clk 0:00:18.4]} 61. Ke6 {[%clk 0:00:06.8]} 61... Re1 {[%clk
0:00:18.8]} 62. Ke5 {[%clk 0:00:07.1]} 62... Kc8 {[%clk 0:00:18.2]} 63. Kd5
{[%clk 0:00:07]} 63... Rd1+ {[%clk 0:00:17.9]} 64. Kc6 {[%clk 0:00:07.4]} 64...
Rc1+ {[%clk 0:00:18]} 65. Nc5 {[%clk 0:00:07.8]} 65... Kd8 {[%clk 0:00:18.1]}
66. Rd7+ {[%clk 0:00:05.9]} 66... Ke8 {[%clk 0:00:18.3]} 67. Ra7 {[%clk
0:00:06.8]} 67... Kf8 {[%clk 0:00:17.9]} 68. Kd6 {[%clk 0:00:07.2]} 68... Rd1+
{[%clk 0:00:18]} 69. Ke5 {[%clk 0:00:07.4]} 69... Re1+ {[%clk 0:00:18.2]} 70.
Ne4 {[%clk 0:00:07.1]} 70... Ke8 {[%clk 0:00:17.8]} 71. Kf5 {[%clk 0:00:06.5]}
71... Kf8 {[%clk 0:00:17.6]} 72. Ng5 {[%clk 0:00:05.4]} 72... Rf1+ {[%clk
0:00:17.1]} 73. Kg6 {[%clk 0:00:05.5]} 73... Ke8 {[%clk 0:00:17.4]} 74. Nh7
{[%clk 0:00:04.3]} 74... Rg1+ {[%clk 0:00:16.9]} 75. Kf5 {[%clk 0:00:04.3]}
75... Rf1+ {[%clk 0:00:17.1]} 76. Kg6 {[%clk 0:00:04.9]} 76... Rg1+ {[%clk
0:00:17.2]} 77. Ng5 {[%clk 0:00:05.7]} 77... Kd8 {[%clk 0:00:17]} 78. Kf6 {[%clk
0:00:05.6]} 78... Kc8 {[%clk 0:00:17]} 79. Ne6 {[%clk 0:00:05.6]} 79... Rf1+
{[%clk 0:00:16.9]} 80. Ke7 {[%clk 0:00:05.8]} 80... Re1 {[%clk 0:00:16.7]} 81.
Kd6 {[%clk 0:00:05.7]} 81... Rd1+ {[%clk 0:00:16.1]} 82. Kc6 {[%clk 0:00:06.3]}
82... Rc1+ {[%clk 0:00:16.1]} 83. Nc5 {[%clk 0:00:07]} 83... Kd8 {[%clk
0:00:16.3]} 84. Rd7+ {[%clk 0:00:06.9]} 84... Ke8 {[%clk 0:00:16.5]} 85. Rh7
{[%clk 0:00:07.4]} 85... Rd1 {[%clk 0:00:16.4]} 86. Ne4 {[%clk 0:00:06.7]} 86...
Re1 {[%clk 0:00:15.9]} 87. Kd5 {[%clk 0:00:06.9]} 87... Rd1+ {[%clk 0:00:14.5]}
88. Ke6 {[%clk 0:00:07]} 88... Kd8 {[%clk 0:00:14.7]} 89. Nd6 {[%clk 0:00:03.4]}
89... Re1+ {[%clk 0:00:14.3]} 90. Kd5 {[%clk 0:00:04]} 90... Rd1+ {[%clk
0:00:14.5]} 91. Kc6 {[%clk 0:00:04.6]} 91... Rc1+ {[%clk 0:00:14.6]} 92. Kb6
{[%clk 0:00:05.2]} 92... Rb1+ {[%clk 0:00:14.5]} 93. Kc5 {[%clk 0:00:05.5]}
93... Rc1+ {[%clk 0:00:14.2]} 94. Nc4 {[%clk 0:00:06.1]} 94... Kc8 {[%clk
0:00:14.4]} 95. Rh2 {[%clk 0:00:05.8]} 95... Kd8 {[%clk 0:00:14.5]} 96. Re2
{[%clk 0:00:05.7]} 96... Kd7 {[%clk 0:00:14.5]} 97. Kd5 {[%clk 0:00:06]} 97...
Kc7 {[%clk 0:00:14.5]} 98. Re7+ {[%clk 0:00:05.8]} 98... Kd8 {[%clk 0:00:14.8]}
99. Rg7 {[%clk 0:00:06.7]} 99... Rd1+ {[%clk 0:00:14.2]} 100. Ke6 {[%clk
0:00:07]} 1/2-1/2

[Event "Late-Titled-Tuesday-Blitz-April-30-2024"]
[Site "Chess.com"]
[Date "2024.04.30"]
[Round "7"]
[White "rhungaski"]
[Black "SergioMoralesG"]
[Result "1-0"]
[WhiteElo "2563"]
[BlackElo "2453"]
[TimeControl "180+1"]
[EndTime "15:19:48 PDT"]
[Termination "rhungaski won on time"]

1. e4 {[%clk 0:03:00.9]} 1... c5 {[%clk 0:02:53.3]} 2. Nf3 {[%clk 0:03:00.5]}
2... e6 {[%clk 0:02:53.4]} 3. d4 {[%clk 0:03:00.6]} 3... cxd4 {[%clk 0:02:54.3]}
4. Nxd4 {[%clk 0:03:01]} 4... Nc6 {[%clk 0:02:54.9]} 5. Nb5 {[%clk 0:03:00.6]}
5... d6 {[%clk 0:02:54.7]} 6. c4 {[%clk 0:03:01.2]} 6... a6 {[%clk 0:02:54.8]}
7. N5c3 {[%clk 0:03:00.7]} 7... Nf6 {[%clk 0:02:54.7]} 8. Be2 {[%clk 0:02:58]}
8... Be7 {[%clk 0:02:55.2]} 9. O-O {[%clk 0:02:58.1]} 9... O-O {[%clk
0:02:55.7]} 10. Bf4 {[%clk 0:02:55.2]} 10... b6 {[%clk 0:02:52.7]} 11. Re1
{[%clk 0:02:55.1]} 11... Bb7 {[%clk 0:02:51.7]} 12. Bf1 {[%clk 0:02:55.3]} 12...
Qc7 {[%clk 0:02:49.5]} 13. h3 {[%clk 0:02:52.4]} 13... Ne5 {[%clk 0:02:48.4]}
14. Nd2 {[%clk 0:02:51.6]} 14... Rac8 {[%clk 0:02:44.5]} 15. Rc1 {[%clk
0:02:50.1]} 15... Qb8 {[%clk 0:02:43.3]} 16. a3 {[%clk 0:02:44.9]} 16... Rfd8
{[%clk 0:02:32.3]} 17. b4 {[%clk 0:02:43.5]} 17... Ng6 {[%clk 0:02:17.5]} 18.
Bh2 {[%clk 0:02:42.7]} 18... Qa8 {[%clk 0:02:16.1]} 19. Qe2 {[%clk 0:02:31.1]}
19... d5 {[%clk 0:02:10.2]} 20. e5 {[%clk 0:02:19.1]} 20... Nd7 {[%clk
0:01:53.5]} 21. cxd5 {[%clk 0:02:15.7]} 21... Bxd5 {[%clk 0:01:53.7]} 22. Nxd5
{[%clk 0:02:05]} 22... Qxd5 {[%clk 0:01:53.7]} 23. Nf3 {[%clk 0:01:45.6]} 23...
b5 {[%clk 0:01:47.4]} 24. Red1 {[%clk 0:01:36.4]} 24... Rxc1 {[%clk 0:01:37.6]}
25. Rxc1 {[%clk 0:01:33.9]} 25... Nb6 {[%clk 0:01:34]} 26. Rc7 {[%clk
0:01:27.3]} 26... Nc4 {[%clk 0:01:28.8]} 27. a4 {[%clk 0:01:22]} 27... Bxb4
{[%clk 0:01:26.2]} 28. axb5 {[%clk 0:01:22.2]} 28... axb5 {[%clk 0:01:26.8]} 29.
h4 {[%clk 0:01:19.7]} 29... h6 {[%clk 0:01:22.7]} 30. h5 {[%clk 0:01:19.7]}
30... Ne7 {[%clk 0:01:20.3]} 31. Nh4 {[%clk 0:01:17.6]} 31... Nc6 {[%clk
0:00:55.3]} 32. Qf3 {[%clk 0:00:46]} 32... Qxf3 {[%clk 0:00:45.1]} 33. Nxf3
{[%clk 0:00:46.9]} 33... Nd4 {[%clk 0:00:34.3]} 34. Bxc4 {[%clk 0:00:46.6]}
34... Nxf3+ {[%clk 0:00:24]} 35. gxf3 {[%clk 0:00:46]} 35... bxc4 {[%clk
0:00:24.9]} 36. Rxc4 {[%clk 0:00:46.3]} 36... Be7 {[%clk 0:00:18.6]} 37. Kg2
{[%clk 0:00:45.7]} 37... Kh7 {[%clk 0:00:13.7]} 38. Bg3 {[%clk 0:00:46.1]} 38...
g6 {[%clk 0:00:12.8]} 39. hxg6+ {[%clk 0:00:45.2]} 39... Kxg6 {[%clk 0:00:13.7]}
40. Rc7 {[%clk 0:00:41.1]} 40... Bf8 {[%clk 0:00:11.6]} 41. Rb7 {[%clk
0:00:40.9]} 41... Bg7 {[%clk 0:00:10.7]} 42. Kh3 {[%clk 0:00:40.6]} 42... Rd5
{[%clk 0:00:10.6]} 43. f4 {[%clk 0:00:40]} 43... h5 {[%clk 0:00:10.8]} 44. Kh4
{[%clk 0:00:17.9]} 44... Rd4 {[%clk 0:00:10.8]} 45. Kh3 {[%clk 0:00:17.1]} 45...
Bh6 {[%clk 0:00:11]} 46. f5+ {[%clk 0:00:17.3]} 46... exf5 {[%clk 0:00:10.1]}
47. Rb6+ {[%clk 0:00:17.9]} 47... Kh7 {[%clk 0:00:08.2]} 48. Rb7 {[%clk
0:00:17.6]} 48... Kg8 {[%clk 0:00:06.2]} 49. Rb8+ {[%clk 0:00:17.8]} 49... Kg7
{[%clk 0:00:06.1]} 50. Bh4 {[%clk 0:00:18.4]} 50... Kg6 {[%clk 0:00:04.3]} 51.
Rg8+ {[%clk 0:00:17.3]} 51... Kh7 {[%clk 0:00:04.1]} 52. Re8 {[%clk 0:00:17]}
52... Bg7 {[%clk 0:00:03.4]} 53. Re7 {[%clk 0:00:17.3]} 53... Kg6 {[%clk
0:00:03.2]} 54. Re8 {[%clk 0:00:16.1]} 54... Re4 {[%clk 0:00:03.5]} 55. Bg3
{[%clk 0:00:15.9]} 55... f4 {[%clk 0:00:03.6]} 56. Bh2 {[%clk 0:00:16.1]} 56...
Rxe5 {[%clk 0:00:03.7]} 57. Rg8 {[%clk 0:00:15.5]} 57... Kh7 {[%clk 0:00:03.7]}
58. Rc8 {[%clk 0:00:15]} 58... Rf5 {[%clk 0:00:04]} 59. f3 {[%clk 0:00:14.2]}
59... Kg6 {[%clk 0:00:04.5]} 60. Rc6+ {[%clk 0:00:14.3]} 60... Bf6 {[%clk
0:00:05.1]} 61. Bg1 {[%clk 0:00:13.8]} 61... Kg5 {[%clk 0:00:05.5]} 62. Bf2
{[%clk 0:00:14]} 62... Rd5 {[%clk 0:00:05.7]} 63. Bh4+ {[%clk 0:00:14.1]} 63...
Kf5 {[%clk 0:00:04.3]} 64. Rxf6+ {[%clk 0:00:14.9]} 64... Ke5 {[%clk 0:00:04.9]}
65. Rxf7 {[%clk 0:00:15.4]} 65... Rd3 {[%clk 0:00:04.5]} 66. Kg2 {[%clk
0:00:15.3]} 66... Rd2+ {[%clk 0:00:04.7]} 67. Bf2 {[%clk 0:00:15.8]} 67... h4
{[%clk 0:00:04.8]} 68. Rh7 {[%clk 0:00:16.1]} 68... Kf5 {[%clk 0:00:04.5]} 69.
Rh5+ {[%clk 0:00:16.1]} 69... Kg6 {[%clk 0:00:04.6]} 70. Rxh4 {[%clk 0:00:17]}
70... Kg5 {[%clk 0:00:05.4]} 71. Rg4+ {[%clk 0:00:17.4]} 71... Kf5 {[%clk
0:00:06.1]} 72. Rg8 {[%clk 0:00:17.6]} 72... Rc2 {[%clk 0:00:06.2]} 73. Rf8+
{[%clk 0:00:17.8]} 73... Ke5 {[%clk 0:00:06.2]} 74. Ra8 {[%clk 0:00:17.4]} 74...
Rb2 {[%clk 0:00:06.5]} 75. Ra5+ {[%clk 0:00:17.4]} 75... Ke6 {[%clk 0:00:05.9]}
76. Ra4 {[%clk 0:00:16.9]} 76... Kf5 {[%clk 0:00:06]} 77. Re4 {[%clk 0:00:17]}
77... Rc2 {[%clk 0:00:06.2]} 78. Kf1 {[%clk 0:00:17.4]} 78... Rc1+ {[%clk
0:00:06.4]} 79. Re1 {[%clk 0:00:17.8]} 79... Rc2 {[%clk 0:00:07.3]} 80. Re2
{[%clk 0:00:17.8]} 80... Rc1+ {[%clk 0:00:07.7]} 81. Kg2 {[%clk 0:00:17.9]}
81... Rc3 {[%clk 0:00:07.4]} 82. Bd4 {[%clk 0:00:17.7]} 82... Rb3 {[%clk
0:00:06.9]} 83. Re5+ {[%clk 0:00:17.9]} 83... Kg6 {[%clk 0:00:06.9]} 84. Re4
{[%clk 0:00:18]} 84... Kf5 {[%clk 0:00:06.5]} 85. Re5+ {[%clk 0:00:18.4]} 85...
Kg6 {[%clk 0:00:06.9]} 86. Ra5 {[%clk 0:00:18.9]} 86... Rd3 {[%clk 0:00:07]} 87.
Be5 {[%clk 0:00:18.4]} 87... Kf5 {[%clk 0:00:05.7]} 88. Bc7+ {[%clk 0:00:18.6]}
88... Ke6 {[%clk 0:00:02.7]} 89. Bxf4 {[%clk 0:00:18.7]} 89... Rb3 {[%clk
0:00:02.2]} 90. Kg3 {[%clk 0:00:18.4]} 90... Rb4 {[%clk 0:00:02.7]} 91. Kg4
{[%clk 0:00:18.5]} 91... Rb1 {[%clk 0:00:03.6]} 92. Ra6+ {[%clk 0:00:18.8]}
92... Kf7 {[%clk 0:00:03.3]} 93. Kf5 {[%clk 0:00:18.5]} 93... Rg1 {[%clk
0:00:04.2]} 94. Be5 {[%clk 0:00:18.7]} 94... Rd1 {[%clk 0:00:05.1]} 95. Ra7+
{[%clk 0:00:19]} 95... Ke8 {[%clk 0:00:05.4]} 96. Ke6 {[%clk 0:00:19.3]} 96...
Rd8 {[%clk 0:00:04.2]} 97. Rh7 {[%clk 0:00:19.3]} 1-0